[Event "Titled Tuesday Blitz July 11 Late 2023"]
[White "Kostiukov, Alexandr"]
[Black "Richter, Paul"]
[WhiteFideId "14108100"]
[BlackFideId "2046350"]
[WhiteElo "2316"]
[BlackElo "2535"]
[Result "0-1"]
[Round "3"]
[TimeControl "180+2"]
[Date "2023.07.11"]
[WhiteClock "0:00:39"]
[BlackClock "0:00:14"]
[Board "115"]

1. g3 {[%clk 0:02:51]}  Nf6 {[%clk 0:02:59]} 2. Bg2 {[%clk 0:02:51]}  g6 {[%clk 0:03:00]} 3. c4 {[%clk 0:02:50]}  Bg7 {[%clk 0:03:00]} 4. Nf3 {[%clk 0:02:51]}  O-O {[%clk 0:03:00]} 5. O-O {[%clk 0:02:49]}  d6 {[%clk 0:03:00]} 6. d4 {[%clk 0:02:49]}  Nbd7 {[%clk 0:03:00]} 7. Nc3 {[%clk 0:02:49]}  e5 {[%clk 0:03:00]} 8. h3 {[%clk 0:02:50]}  Re8 {[%clk 0:02:56]} 9. e4 {[%clk 0:02:49]}  exd4 {[%clk 0:02:56]} 10. Nxd4 {[%clk 0:02:49]}  a6 {[%clk 0:02:56]} 11. Re1 {[%clk 0:02:46]}  Rb8 {[%clk 0:02:56]} 12. Rb1 {[%clk 0:02:38]}  Ne5 {[%clk 0:02:55]} 13. b3 {[%clk 0:02:36]}  c5 {[%clk 0:02:55]} 14. Nc2 {[%clk 0:02:36]}  b5 {[%clk 0:02:55]} 15. cxb5 {[%clk 0:02:27]}  axb5 {[%clk 0:02:56]} 16. Ne3 {[%clk 0:02:27]}  b4 {[%clk 0:02:51]} 17. Ncd5 {[%clk 0:02:27]}  Nxd5 {[%clk 0:02:51]} 18. Nxd5 {[%clk 0:02:26]}  Ba6 {[%clk 0:02:49]} 19. Bb2 {[%clk 0:02:13]}  Bb7 {[%clk 0:02:44]} 20. f4 {[%clk 0:02:10]}  Nd7 {[%clk 0:02:36]} 21. Bxg7 {[%clk 0:02:04]}  Kxg7 {[%clk 0:02:37]} 22. Qd2 {[%clk 0:01:58]}  Bxd5 {[%clk 0:02:13]} 23. Qxd5 {[%clk 0:01:57]}  Nf6 {[%clk 0:02:12]} 24. Qd3 {[%clk 0:01:55]}  Qb6 {[%clk 0:02:10]} 25. Kh2 {[%clk 0:01:54]}  h5 {[%clk 0:02:00]} 26. Re2 {[%clk 0:01:51]}  Qc7 {[%clk 0:01:48]} 27. Rd1 {[%clk 0:01:50]}  Rbd8 {[%clk 0:01:47]} 28. Bf3 {[%clk 0:01:45]}  Qe7 {[%clk 0:01:41]} 29. Qc4 {[%clk 0:01:35]}  Qc7 {[%clk 0:01:33]} 30. Red2 {[%clk 0:01:29]}  Rd7 {[%clk 0:00:47]} 31. Kg2 {[%clk 0:01:27]}  Red8 {[%clk 0:00:31]} 32. g4 {[%clk 0:01:25]}  h4 {[%clk 0:00:27]} 33. g5 {[%clk 0:01:23]}  Ng8 {[%clk 0:00:27]} 34. Bg4 {[%clk 0:01:21]}  Re7 {[%clk 0:00:27]} 35. e5 {[%clk 0:01:20]}  d5 {[%clk 0:00:18]} 36. Rxd5 {[%clk 0:01:20]}  Rxd5 {[%clk 0:00:19]} 37. Qxd5 {[%clk 0:01:19]}  Qa5 {[%clk 0:00:20]} 38. Rd2 {[%clk 0:01:18]}  Ra7 {[%clk 0:00:19]} 39. e6 {[%clk 0:01:13]}  fxe6 {[%clk 0:00:19]} 40. Qe5+ {[%clk 0:01:12]}  Kf8 {[%clk 0:00:17]} 41. Bxe6 {[%clk 0:01:10]}  c4 {[%clk 0:00:14]} 42. Qxa5 {[%clk 0:01:07]}  Rxa5 {[%clk 0:00:15]} 43. Rd8+ {[%clk 0:01:06]}  Ke7 {[%clk 0:00:15]} 44. Rxg8 {[%clk 0:01:06]}  Kxe6 {[%clk 0:00:15]} 45. Rxg6+ {[%clk 0:01:03]}  Kf5 {[%clk 0:00:13]} 46. Rf6+ {[%clk 0:01:03]}  Ke4 {[%clk 0:00:14]} 47. bxc4 {[%clk 0:00:59]}  Rxa2+ {[%clk 0:00:14]} 48. Kf1 {[%clk 0:01:00]}  b3 {[%clk 0:00:12]} 49. Rb6 {[%clk 0:00:54]}  b2 {[%clk 0:00:12]} 50. g6 {[%clk 0:00:48]}  Ra1+ {[%clk 0:00:12]} 51. Kf2 {[%clk 0:00:47]}  b1=Q {[%clk 0:00:13]} 52. Rxb1 {[%clk 0:00:39]}  Rxb1 {[%clk 0:00:14]} 0-1


[Site "https://www.chess.com"]

[Event "Titled Tuesday Blitz July 11 Late 2023"]
[White "Hajiyev, Kanan"]
[Black "Ward, Ieuan C"]
[WhiteFideId "13404148"]
[BlackFideId "406627"]
[WhiteElo "2532"]
[BlackElo "2290"]
[Result "1-0"]
[Round "3"]
[TimeControl "180+2"]
[Date "2023.07.11"]
[WhiteClock "0:00:02"]
[BlackClock "0:00:03"]
[Board "118"]

1. d4 {[%clk 0:03:00]}  Nf6 {[%clk 0:02:59]} 2. c4 {[%clk 0:03:01]}  e6 {[%clk 0:02:59]} 3. Nc3 {[%clk 0:03:02]}  d5 {[%clk 0:02:59]} 4. cxd5 {[%clk 0:03:03]}  exd5 {[%clk 0:02:59]} 5. Qc2 {[%clk 0:03:01]}  c6 {[%clk 0:02:59]} 6. Nf3 {[%clk 0:02:59]}  Be7 {[%clk 0:02:58]} 7. Bf4 {[%clk 0:02:58]}  O-O {[%clk 0:02:58]} 8. e3 {[%clk 0:02:58]}  Nbd7 {[%clk 0:02:58]} 9. Bd3 {[%clk 0:02:58]}  Re8 {[%clk 0:02:59]} 10. O-O {[%clk 0:02:58]}  Nf8 {[%clk 0:02:59]} 11. h3 {[%clk 0:02:55]}  Ne6 {[%clk 0:02:57]} 12. Be5 {[%clk 0:02:52]}  g6 {[%clk 0:02:57]} 13. Rab1 {[%clk 0:02:50]}  a5 {[%clk 0:02:52]} 14. a3 {[%clk 0:02:50]}  Ng7 {[%clk 0:02:51]} 15. b4 {[%clk 0:02:49]}  axb4 {[%clk 0:02:52]} 16. axb4 {[%clk 0:02:50]}  Bf5 {[%clk 0:02:52]} 17. b5 {[%clk 0:02:50]}  Bxd3 {[%clk 0:02:44]} 18. Qxd3 {[%clk 0:02:48]}  Ra3 {[%clk 0:02:43]} 19. bxc6 {[%clk 0:02:47]}  bxc6 {[%clk 0:02:38]} 20. Qc2 {[%clk 0:02:32]}  c5 {[%clk 0:02:24]} 21. dxc5 {[%clk 0:02:24]}  Qa5 {[%clk 0:02:06]} 22. Rb5 {[%clk 0:01:26]}  Rxc3 {[%clk 0:01:55]} 23. Qb2 {[%clk 0:00:45]}  Qxb5 {[%clk 0:01:31]} 24. Qxb5 {[%clk 0:00:43]}  Rxc5 {[%clk 0:01:32]} 25. Qa4 {[%clk 0:00:38]}  Rec8 {[%clk 0:01:27]} 26. Qa1 {[%clk 0:00:29]}  Nge8 {[%clk 0:01:19]} 27. Nd4 {[%clk 0:00:26]}  Ne4 {[%clk 0:01:10]} 28. Nb3 {[%clk 0:00:20]}  Rc2 {[%clk 0:01:07]} 29. Nd4 {[%clk 0:00:17]}  R2c5 {[%clk 0:01:01]} 30. g4 {[%clk 0:00:15]}  Bh4 {[%clk 0:00:39]} 31. Kg2 {[%clk 0:00:14]}  Bf6 {[%clk 0:00:36]} 32. Bxf6 {[%clk 0:00:14]}  N8xf6 {[%clk 0:00:37]} 33. Rb1 {[%clk 0:00:09]}  h5 {[%clk 0:00:35]} 34. gxh5 {[%clk 0:00:08]}  Nxh5 {[%clk 0:00:33]} 35. Rb7 {[%clk 0:00:08]}  R5c7 {[%clk 0:00:28]} 36. Rxc7 {[%clk 0:00:08]}  Rxc7 {[%clk 0:00:29]} 37. Qa2 {[%clk 0:00:08]}  Rd7 {[%clk 0:00:24]} 38. Qa4 {[%clk 0:00:07]}  Rd8 {[%clk 0:00:22]} 39. Nc6 {[%clk 0:00:07]}  Rf8 {[%clk 0:00:19]} 40. Ne7+ {[%clk 0:00:06]}  Kg7 {[%clk 0:00:19]} 41. Nxd5 {[%clk 0:00:07]}  Nhf6 {[%clk 0:00:19]} 42. Qd4 {[%clk 0:00:08]}  Rd8 {[%clk 0:00:18]} 43. f3 {[%clk 0:00:03]}  Rd6 {[%clk 0:00:18]} 44. fxe4 {[%clk 0:00:02]}  Kf8 {[%clk 0:00:05]} 45. Qe5 {[%clk 0:00:02]}  Ne8 {[%clk 0:00:03]} 46. Qh8# {[%clk 0:00:02]} 1-0


[Site "https://www.chess.com"]

[Event "Titled Tuesday Blitz July 11 Late 2023"]
[White "Ardila, Oscar Humberto"]
[Black "MFatigue"]
[WhiteFideId "4404742"]
[WhiteElo "2279"]
[BlackElo "2531"]
[Result "0-1"]
[Round "3"]
[TimeControl "180+2"]
[Date "2023.07.11"]
[WhiteClock "0:00:00"]
[BlackClock "0:02:39"]
[Board "120"]

1. d4 {[%clk 0:03:00]}  d5 {[%clk 0:02:59]} 2. c4 {[%clk 0:03:00]}  c6 {[%clk 0:02:58]} 3. e3 {[%clk 0:02:58]}  Nf6 {[%clk 0:02:58]} 4. Nc3 {[%clk 0:02:59]}  e6 {[%clk 0:02:58]} 5. Nf3 {[%clk 0:02:59]}  Nbd7 {[%clk 0:02:58]} 6. Bd3 {[%clk 0:02:58]}  dxc4 {[%clk 0:02:59]} 7. Bxc4 {[%clk 0:02:58]}  b5 {[%clk 0:02:59]} 8. Bd3 {[%clk 0:02:52]}  Bd6 {[%clk 0:03:00]} 9. O-O {[%clk 0:02:51]}  O-O {[%clk 0:03:00]} 10. Qc2 {[%clk 0:02:49]}  Bb7 {[%clk 0:02:59]} 11. Ne4 {[%clk 0:02:49]}  Nxe4 {[%clk 0:02:57]} 12. Bxe4 {[%clk 0:02:49]}  f5 {[%clk 0:02:58]} 13. Bd3 {[%clk 0:02:44]}  c5 {[%clk 0:02:56]} 14. dxc5 {[%clk 0:02:42]}  Rc8 {[%clk 0:02:52]} 15. b4 {[%clk 0:02:41]}  Bxf3 {[%clk 0:02:51]} 16. gxf3 {[%clk 0:02:29]}  Bxh2+ {[%clk 0:02:51]} 17. Kxh2 {[%clk 0:02:26]}  Qh4+ {[%clk 0:02:51]} 18. Kg2 {[%clk 0:02:26]}  Qg5+ {[%clk 0:02:48]} 19. Kh2 {[%clk 0:02:02]}  Rf6 {[%clk 0:02:45]} 20. Bxf5 {[%clk 0:01:48]}  exf5 {[%clk 0:02:39]} 21. Qb3+ {[%clk 0:00:00]}  Kh8 {[%clk 0:02:39]} 0-1


[Site "https://www.chess.com"]

[Event "Titled Tuesday Blitz July 11 Late 2023"]
[White "rionelG"]
[Black "D`Arruda, Ricardo D."]
[BlackFideId "100692"]
[WhiteElo "2256"]
[BlackElo "2528"]
[Result "0-1"]
[Round "3"]
[TimeControl "180+2"]
[Date "2023.07.11"]
[WhiteClock "0:00:00"]
[BlackClock "0:00:55"]
[Board "123"]

1. e4 {[%clk 0:03:00]}  c5 {[%clk 0:02:59]} 2. g3 {[%clk 0:03:00]}  Nc6 {[%clk 0:02:59]} 3. Bg2 {[%clk 0:03:00]}  Nf6 {[%clk 0:02:59]} 4. Ne2 {[%clk 0:03:01]}  d5 {[%clk 0:02:57]} 5. exd5 {[%clk 0:03:01]}  Nxd5 {[%clk 0:02:58]} 6. O-O {[%clk 0:03:00]}  g6 {[%clk 0:02:56]} 7. Nbc3 {[%clk 0:03:01]}  Nxc3 {[%clk 0:02:56]} 8. bxc3 {[%clk 0:03:00]}  Qc7 {[%clk 0:02:54]} 9. d4 {[%clk 0:02:52]}  Bg7 {[%clk 0:02:53]} 10. Bf4 {[%clk 0:02:48]}  e5 {[%clk 0:02:43]} 11. d5 {[%clk 0:02:19]}  exf4 {[%clk 0:02:25]} 12. dxc6 {[%clk 0:02:18]}  fxg3 {[%clk 0:02:20]} 13. hxg3 {[%clk 0:01:47]}  bxc6 {[%clk 0:02:19]} 14. Qd3 {[%clk 0:01:44]}  O-O {[%clk 0:02:18]} 15. Qe3 {[%clk 0:01:42]}  Ba6 {[%clk 0:02:10]} 16. Rfe1 {[%clk 0:01:39]}  Rfe8 {[%clk 0:02:07]} 17. Qf3 {[%clk 0:01:36]}  Rad8 {[%clk 0:01:41]} 18. Nf4 {[%clk 0:01:35]}  Bb5 {[%clk 0:01:31]} 19. a4 {[%clk 0:01:31]}  Rxe1+ {[%clk 0:01:30]} 20. Rxe1 {[%clk 0:01:28]}  Bxa4 {[%clk 0:01:30]} 21. Qe4 {[%clk 0:01:20]}  Bb5 {[%clk 0:01:23]} 22. c4 {[%clk 0:01:19]}  Ba6 {[%clk 0:01:23]} 23. Qxc6 {[%clk 0:01:16]}  Qxc6 {[%clk 0:01:23]} 24. Bxc6 {[%clk 0:01:17]}  Bxc4 {[%clk 0:01:22]} 25. Re7 {[%clk 0:00:55]}  a6 {[%clk 0:01:16]} 26. Ra7 {[%clk 0:00:44]}  h6 {[%clk 0:01:16]} 27. Bb7 {[%clk 0:00:43]}  Rd6 {[%clk 0:01:10]} 28. Nd3 {[%clk 0:00:35]}  Bd4 {[%clk 0:01:09]} 29. Kg2 {[%clk 0:00:30]}  Kg7 {[%clk 0:01:06]} 30. f4 {[%clk 0:00:26]}  Rd7 {[%clk 0:01:02]} 31. Kh3 {[%clk 0:00:09]}  Be6+ {[%clk 0:00:58]} 32. g4 {[%clk 0:00:08]}  h5 {[%clk 0:00:55]} 33. f5 {[%clk 0:00:05]}  hxg4+ {[%clk 0:00:55]} 34. Kxg4 {[%clk 0:00:05]}  Bxf5+ {[%clk 0:00:55]} 35. Kf4 {[%clk 0:00:00]}  c4 {[%clk 0:00:55]} 0-1


[Site "https://www.chess.com"]

[Event "Titled Tuesday Blitz July 11 Late 2023"]
[White "Kanyamarala, Tarun"]
[Black "SicilianPanzer"]
[WhiteFideId "45004714"]
[WhiteElo "2527"]
[BlackElo "2255"]
[Result "1-0"]
[Round "3"]
[TimeControl "180+2"]
[Date "2023.07.11"]
[WhiteClock "0:00:49"]
[BlackClock "0:00:02"]
[Board "124"]

1. Nf3 {[%clk 0:02:58]}  Nf6 {[%clk 0:02:59]} 2. b3 {[%clk 0:02:57]}  g6 {[%clk 0:02:58]} 3. Bb2 {[%clk 0:02:56]}  Bg7 {[%clk 0:02:58]} 4. c4 {[%clk 0:02:55]}  O-O {[%clk 0:02:57]} 5. g3 {[%clk 0:02:54]}  d6 {[%clk 0:02:46]} 6. d4 {[%clk 0:02:54]}  Bf5 {[%clk 0:02:37]} 7. Bg2 {[%clk 0:02:50]}  c6 {[%clk 0:02:36]} 8. O-O {[%clk 0:02:42]}  a5 {[%clk 0:02:34]} 9. a3 {[%clk 0:02:40]}  Nbd7 {[%clk 0:02:15]} 10. Nh4 {[%clk 0:02:38]}  Be4 {[%clk 0:02:08]} 11. f3 {[%clk 0:02:28]}  Bxb1 {[%clk 0:02:06]} 12. Rxb1 {[%clk 0:02:21]}  d5 {[%clk 0:01:53]} 13. e4 {[%clk 0:02:17]}  e6 {[%clk 0:01:48]} 14. e5 {[%clk 0:02:10]}  Ne8 {[%clk 0:01:47]} 15. cxd5 {[%clk 0:02:08]}  cxd5 {[%clk 0:01:46]} 16. f4 {[%clk 0:02:07]}  Rc8 {[%clk 0:01:45]} 17. Nf3 {[%clk 0:02:03]}  a4 {[%clk 0:01:26]} 18. bxa4 {[%clk 0:02:00]}  Qa5 {[%clk 0:01:25]} 19. Ba1 {[%clk 0:01:58]}  b6 {[%clk 0:01:06]} 20. Rb5 {[%clk 0:01:56]}  Qa7 {[%clk 0:01:04]} 21. g4 {[%clk 0:01:41]}  Rc4 {[%clk 0:01:01]} 22. f5 {[%clk 0:01:38]}  Nc7 {[%clk 0:00:35]} 23. Rb1 {[%clk 0:01:27]}  Ra8 {[%clk 0:00:34]} 24. Ng5 {[%clk 0:01:12]}  Qxa4 {[%clk 0:00:30]} 25. Qf3 {[%clk 0:01:11]}  Rxd4 {[%clk 0:00:27]} 26. Nxf7 {[%clk 0:01:04]}  exf5 {[%clk 0:00:16]} 27. Bxd4 {[%clk 0:00:53]}  Qxd4+ {[%clk 0:00:15]} 28. Kh1 {[%clk 0:00:53]}  Nxe5 {[%clk 0:00:15]} 29. Nxe5 {[%clk 0:00:52]}  Bxe5 {[%clk 0:00:14]} 30. gxf5 {[%clk 0:00:53]}  g5 {[%clk 0:00:14]} 31. f6 {[%clk 0:00:52]}  Ne6 {[%clk 0:00:13]} 32. Qf5 {[%clk 0:00:51]}  Nf8 {[%clk 0:00:08]} 33. Qxg5+ {[%clk 0:00:50]}  Ng6 {[%clk 0:00:02]} 34. Rbd1 {[%clk 0:00:49]} 1-0


[Site "https://www.chess.com"]

[Event "Titled Tuesday Blitz July 11 Late 2023"]
[White "rikchessmx"]
[Black "Poltorak, Sebastian"]
[BlackFideId "1199498"]
[WhiteElo "2244"]
[BlackElo "2524"]
[Result "1-0"]
[Round "3"]
[TimeControl "180+2"]
[Date "2023.07.11"]
[WhiteClock "0:00:43"]
[BlackClock "0:00:03"]
[Board "126"]

1. e4 {[%clk 0:02:55]}  f6 {[%clk 0:02:55]} 2. d4 {[%clk 0:02:54]}  g6 {[%clk 0:02:56]} 3. Nc3 {[%clk 0:02:54]}  Bg7 {[%clk 0:02:56]} 4. Bc4 {[%clk 0:02:52]}  Nh6 {[%clk 0:02:56]} 5. Bb3 {[%clk 0:02:52]}  e6 {[%clk 0:02:56]} 6. h4 {[%clk 0:02:52]}  Nf7 {[%clk 0:02:54]} 7. h5 {[%clk 0:02:52]}  g5 {[%clk 0:02:55]} 8. f4 {[%clk 0:02:51]}  h6 {[%clk 0:02:54]} 9. Be3 {[%clk 0:02:48]}  O-O {[%clk 0:02:52]} 10. Qe2 {[%clk 0:02:47]}  c6 {[%clk 0:02:52]} 11. O-O-O {[%clk 0:02:44]}  d5 {[%clk 0:02:52]} 12. f5 {[%clk 0:02:41]}  exf5 {[%clk 0:02:49]} 13. exd5 {[%clk 0:02:41]}  f4 {[%clk 0:02:45]} 14. Bf2 {[%clk 0:02:40]}  Bf5 {[%clk 0:02:34]} 15. dxc6 {[%clk 0:02:38]}  Nxc6 {[%clk 0:02:31]} 16. Qb5 {[%clk 0:02:35]}  Qd7 {[%clk 0:02:22]} 17. Nf3 {[%clk 0:02:28]}  a6 {[%clk 0:02:19]} 18. Qb6 {[%clk 0:02:25]}  Rfe8 {[%clk 0:02:03]} 19. Rhe1 {[%clk 0:02:21]}  Rad8 {[%clk 0:01:57]} 20. Rxe8+ {[%clk 0:02:19]}  Rxe8 {[%clk 0:01:57]} 21. d5 {[%clk 0:02:19]}  Nce5 {[%clk 0:01:44]} 22. Nd4 {[%clk 0:02:18]}  Bg4 {[%clk 0:01:40]} 23. Re1 {[%clk 0:02:10]}  Rd8 {[%clk 0:01:09]} 24. Ne6 {[%clk 0:02:07]}  Rc8 {[%clk 0:01:05]} 25. Nc5 {[%clk 0:01:54]}  Qc7 {[%clk 0:00:56]} 26. Qxb7 {[%clk 0:01:53]}  Bxh5 {[%clk 0:00:49]} 27. Qxa6 {[%clk 0:01:50]}  f3 {[%clk 0:00:44]} 28. Ne6 {[%clk 0:01:46]}  Qd6 {[%clk 0:00:38]} 29. Qxc8+ {[%clk 0:01:41]}  Kh7 {[%clk 0:00:34]} 30. Ne4 {[%clk 0:01:36]}  Qb4 {[%clk 0:00:26]} 31. c3 {[%clk 0:01:31]}  Qb5 {[%clk 0:00:25]} 32. Nxg7 {[%clk 0:01:25]}  Nd3+ {[%clk 0:00:25]} 33. Kb1 {[%clk 0:01:02]}  Nxe1 {[%clk 0:00:25]} 34. c4 {[%clk 0:00:56]}  Qa5 {[%clk 0:00:15]} 35. Nxh5 {[%clk 0:00:55]}  Kg6 {[%clk 0:00:10]} 36. Nhxf6 {[%clk 0:00:54]}  Ne5 {[%clk 0:00:07]} 37. Qe8+ {[%clk 0:00:51]}  Kf5 {[%clk 0:00:07]} 38. g4+ {[%clk 0:00:51]}  Kf4 {[%clk 0:00:08]} 39. Bg3+ {[%clk 0:00:48]}  Ke3 {[%clk 0:00:08]} 40. Nc3 {[%clk 0:00:47]}  Nd3 {[%clk 0:00:07]} 41. Bxe5 {[%clk 0:00:45]}  Kd2 {[%clk 0:00:07]} 42. Bg3 {[%clk 0:00:43]}  Qc5 {[%clk 0:00:03]} 43. Nfe4+ {[%clk 0:00:43]} 1-0


[Site "https://www.chess.com"]

[Event "Titled Tuesday Blitz July 11 Late 2023"]
[White "Sebag, Marie"]
[Black "Vujacic, Igor"]
[WhiteFideId "617822"]
[BlackFideId "932620"]
[WhiteElo "2518"]
[BlackElo "2187"]
[Result "0-1"]
[Round "3"]
[TimeControl "180+2"]
[Date "2023.07.11"]
[WhiteClock "0:00:13"]
[BlackClock "0:00:07"]
[Board "132"]

1. d4 {[%clk 0:02:29]}  d5 {[%clk 0:02:58]} 2. c4 {[%clk 0:02:26]}  e6 {[%clk 0:02:58]} 3. Nc3 {[%clk 0:02:26]}  a6 {[%clk 0:02:56]} 4. cxd5 {[%clk 0:02:25]}  exd5 {[%clk 0:02:57]} 5. Bf4 {[%clk 0:02:25]}  c6 {[%clk 0:02:56]} 6. e3 {[%clk 0:02:25]}  Bd6 {[%clk 0:02:56]} 7. Bd3 {[%clk 0:02:22]}  Bxf4 {[%clk 0:02:36]} 8. exf4 {[%clk 0:02:20]}  Qf6 {[%clk 0:02:37]} 9. Nge2 {[%clk 0:02:19]}  Ne7 {[%clk 0:02:33]} 10. O-O {[%clk 0:02:19]}  O-O {[%clk 0:02:32]} 11. Qd2 {[%clk 0:02:18]}  Bf5 {[%clk 0:02:29]} 12. Rfe1 {[%clk 0:02:15]}  Nd7 {[%clk 0:02:26]} 13. Ng3 {[%clk 0:02:04]}  Bxd3 {[%clk 0:02:23]} 14. Qxd3 {[%clk 0:02:04]}  Rfe8 {[%clk 0:02:21]} 15. f5 {[%clk 0:01:55]}  h5 {[%clk 0:01:59]} 16. Nxh5 {[%clk 0:01:33]}  Qxf5 {[%clk 0:01:55]} 17. Qe2 {[%clk 0:01:31]}  g6 {[%clk 0:01:06]} 18. Ng3 {[%clk 0:01:15]}  Qf4 {[%clk 0:01:03]} 19. Qd3 {[%clk 0:00:55]}  Rad8 {[%clk 0:00:49]} 20. Re3 {[%clk 0:00:54]}  Nc8 {[%clk 0:00:47]} 21. Rae1 {[%clk 0:00:37]}  Nd6 {[%clk 0:00:38]} 22. h3 {[%clk 0:00:33]}  Rxe3 {[%clk 0:00:29]} 23. Rxe3 {[%clk 0:00:32]}  Nc4 {[%clk 0:00:25]} 24. Rf3 {[%clk 0:00:30]}  Qd2 {[%clk 0:00:17]} 25. Qxd2 {[%clk 0:00:26]}  Nxd2 {[%clk 0:00:18]} 26. Re3 {[%clk 0:00:26]}  Nc4 {[%clk 0:00:15]} 27. Re2 {[%clk 0:00:26]}  Nf8 {[%clk 0:00:14]} 28. b3 {[%clk 0:00:26]}  Nd6 {[%clk 0:00:15]} 29. Na4 {[%clk 0:00:26]}  Ne6 {[%clk 0:00:15]} 30. Rd2 {[%clk 0:00:25]}  Nb5 {[%clk 0:00:13]} 31. Nc5 {[%clk 0:00:25]}  Nxc5 {[%clk 0:00:06]} 32. dxc5 {[%clk 0:00:26]}  Re8 {[%clk 0:00:06]} 33. a4 {[%clk 0:00:26]}  Nc3 {[%clk 0:00:06]} 34. Rc2 {[%clk 0:00:26]}  Re1+ {[%clk 0:00:06]} 35. Kh2 {[%clk 0:00:25]}  Ne4 {[%clk 0:00:06]} 36. Nxe4 {[%clk 0:00:23]}  Rxe4 {[%clk 0:00:07]} 37. Rc3 {[%clk 0:00:22]}  f5 {[%clk 0:00:06]} 38. Kg3 {[%clk 0:00:22]}  Kf7 {[%clk 0:00:06]} 39. Kf3 {[%clk 0:00:22]}  Ke6 {[%clk 0:00:06]} 40. g4 {[%clk 0:00:20]}  Ke5 {[%clk 0:00:05]} 41. Rd3 {[%clk 0:00:19]}  Rd4 {[%clk 0:00:04]} 42. Re3+ {[%clk 0:00:19]}  Re4 {[%clk 0:00:04]} 43. Rd3 {[%clk 0:00:19]}  Rf4+ {[%clk 0:00:04]} 44. Kg3 {[%clk 0:00:19]}  Rd4 {[%clk 0:00:05]} 45. Re3+ {[%clk 0:00:19]}  Re4 {[%clk 0:00:05]} 46. Rc3 {[%clk 0:00:19]}  Kd4 {[%clk 0:00:05]} 47. Rf3 {[%clk 0:00:18]}  fxg4 {[%clk 0:00:03]} 48. hxg4 {[%clk 0:00:18]}  Kxc5 {[%clk 0:00:03]} 49. Rf6 {[%clk 0:00:18]}  d4 {[%clk 0:00:03]} 50. Kf3 {[%clk 0:00:17]}  Re1 {[%clk 0:00:03]} 51. Rf8 {[%clk 0:00:16]}  Kb4 {[%clk 0:00:03]} 52. Rd8 {[%clk 0:00:16]}  Kc3 {[%clk 0:00:03]} 53. Rd6 {[%clk 0:00:13]}  d3 {[%clk 0:00:03]} 54. Rxg6 {[%clk 0:00:13]}  d2 {[%clk 0:00:04]} 55. Rd6 {[%clk 0:00:14]}  d1=Q+ {[%clk 0:00:04]} 56. Rxd1 {[%clk 0:00:15]}  Rxd1 {[%clk 0:00:05]} 57. g5 {[%clk 0:00:15]}  Rg1 {[%clk 0:00:05]} 58. Kf4 {[%clk 0:00:16]}  Kxb3 {[%clk 0:00:06]} 59. Kf5 {[%clk 0:00:16]}  c5 {[%clk 0:00:07]} 60. f4 {[%clk 0:00:13]}  c4 {[%clk 0:00:07]} 0-1


[Site "https://www.chess.com"]

[Event "Titled Tuesday Blitz July 11 Late 2023"]
[White "Jovic, Stanoje"]
[Black "cycygogne"]
[WhiteFideId "905020"]
[WhiteElo "2517"]
[BlackElo "2127"]
[Result "1-0"]
[Round "3"]
[TimeControl "180+2"]
[Date "2023.07.11"]
[WhiteClock "0:00:13"]
[BlackClock "0:00:02"]
[Board "133"]

1. c4 {[%clk 0:03:00]}  c5 {[%clk 0:02:50]} 2. g3 {[%clk 0:03:00]}  g6 {[%clk 0:02:47]} 3. Bg2 {[%clk 0:03:00]}  Bg7 {[%clk 0:02:47]} 4. Nc3 {[%clk 0:03:01]}  Nc6 {[%clk 0:02:47]} 5. Nf3 {[%clk 0:03:01]}  e6 {[%clk 0:02:46]} 6. O-O {[%clk 0:03:00]}  Nge7 {[%clk 0:02:46]} 7. d4 {[%clk 0:02:58]}  cxd4 {[%clk 0:02:45]} 8. Nb5 {[%clk 0:02:58]}  O-O {[%clk 0:02:33]} 9. Nbxd4 {[%clk 0:02:56]}  Nxd4 {[%clk 0:02:30]} 10. Nxd4 {[%clk 0:02:57]}  d5 {[%clk 0:02:22]} 11. cxd5 {[%clk 0:02:56]}  Nxd5 {[%clk 0:02:17]} 12. e4 {[%clk 0:02:57]}  Nb6 {[%clk 0:02:07]} 13. Nb3 {[%clk 0:02:52]}  Bd7 {[%clk 0:02:02]} 14. Qe2 {[%clk 0:02:52]}  Qe7 {[%clk 0:01:49]} 15. Be3 {[%clk 0:02:48]}  Rac8 {[%clk 0:01:48]} 16. Rac1 {[%clk 0:02:42]}  Rfd8 {[%clk 0:01:30]} 17. f4 {[%clk 0:02:41]}  e5 {[%clk 0:01:22]} 18. f5 {[%clk 0:02:41]}  Rxc1 {[%clk 0:01:17]} 19. Bxc1 {[%clk 0:02:25]}  Qb4 {[%clk 0:00:54]} 20. Qf2 {[%clk 0:02:16]}  Bb5 {[%clk 0:00:48]} 21. Re1 {[%clk 0:01:55]}  Nc4 {[%clk 0:00:20]} 22. Nc5 {[%clk 0:01:18]}  Bf8 {[%clk 0:00:18]} 23. Nxb7 {[%clk 0:01:17]}  Ba6 {[%clk 0:00:17]} 24. Nxd8 {[%clk 0:01:11]}  Bc5 {[%clk 0:00:17]} 25. Be3 {[%clk 0:01:10]}  Nxe3 {[%clk 0:00:16]} 26. Nc6 {[%clk 0:01:00]}  Qb6 {[%clk 0:00:12]} 27. b4 {[%clk 0:00:56]}  Bd4 {[%clk 0:00:10]} 28. Nxd4 {[%clk 0:00:56]}  exd4 {[%clk 0:00:11]} 29. fxg6 {[%clk 0:00:55]}  hxg6 {[%clk 0:00:11]} 30. e5 {[%clk 0:00:51]}  Qxb4 {[%clk 0:00:10]} 31. e6 {[%clk 0:00:48]}  fxe6 {[%clk 0:00:10]} 32. Rc1 {[%clk 0:00:43]}  Bc4 {[%clk 0:00:09]} 33. Qf6 {[%clk 0:00:39]}  Qb5 {[%clk 0:00:08]} 34. Qxg6+ {[%clk 0:00:35]}  Kf8 {[%clk 0:00:09]} 35. Qf6+ {[%clk 0:00:35]}  Kg8 {[%clk 0:00:09]} 36. Qxd4 {[%clk 0:00:33]}  Nd5 {[%clk 0:00:08]} 37. Re1 {[%clk 0:00:29]}  Bxa2 {[%clk 0:00:05]} 38. Rxe6 {[%clk 0:00:26]}  Nf4 {[%clk 0:00:05]} 39. Qd8+ {[%clk 0:00:23]}  Kf7 {[%clk 0:00:03]} 40. Qf6+ {[%clk 0:00:22]}  Kg8 {[%clk 0:00:03]} 41. Qd8+ {[%clk 0:00:18]}  Kf7 {[%clk 0:00:03]} 42. Re7+ {[%clk 0:00:18]}  Kg6 {[%clk 0:00:03]} 43. Be4+ {[%clk 0:00:17]}  Kg5 {[%clk 0:00:02]} 44. Re5+ {[%clk 0:00:14]}  Kg4 {[%clk 0:00:02]} 45. Qg5+ {[%clk 0:00:13]}  Kh3 {[%clk 0:00:02]} 46. Bf5# {[%clk 0:00:13]} 1-0


[Site "https://www.chess.com"]